{"text_format":"3","workbook":"xlsx","n_sheets":1,"sheets":["A 1.1"],"read":"whole","date_system":"1900"}

{"sheet":"A 1.1","index":0,"n_rows":15,"n_cols":7,"rows_kept":15}
["Descripción de la Actividad","UNIDAD","Sub total US$","Resumen de Costos","Aporte Mercociudades","Medellín ","CABA"]
["Pasajes aéreos. Desde Buenos Aires a Medellín, ida y vuelta para 3 funcionarios del Gobierno de la Ciudad Autónoma de Buenos Aires y un actor interviniente en el proyecto Nosotras Conectadas.","4 personas ",{"v":1100,"d":"1,100.0"},{"$f":"+C2*4","v":{"v":4400,"d":"4,400.0"}},{"$f":"+D2","v":{"v":4400,"d":"4,400.0"}}]
["Alojamiento. En la Ciudad de Medellín, para 3 funcionarios del Gobierno de la Ciudad Autónoma de Buenos Aires y un actor interviniente en el proyecto Nosotras Conectadas por 4 noches.","4 personas ",{"v":310,"d":"310.0"},{"$f":"310*4","v":{"v":1240,"d":"1,240.0"}},{"$f":"+D3","v":{"v":1240,"d":"1,240.0"}}]
["Seguro Médico. En la Ciudad de Medellín, para 3 funcionarios del Gobierno de la Ciudad Autónoma de Buenos Aires y un actor interviniente en el proyecto Nosotras Conectadas.","4 personas ","40 USD",{"$f":"40*4","v":{"v":160,"d":"160.0"}},{"v":160,"d":"160.0"}]
["Traslados internos, para 3 funcionarios del Gobierno de la Ciudad Autónoma de Buenos Aires y un actor interviniente en el proyecto Nosotras Conectadas. El costo que se debe asumir son los peajes para el traslado desde el aeropuerto. ","4 personas",{"v":70,"d":"70.0"},{"$f":"+C5*4","v":{"v":280,"d":"280.0"}},null,{"$f":"+D5","v":{"v":280,"d":"280.0"}}]
["Manutención para 3 funcionarios del Gobierno de la Ciudad Autónoma de Buenos Aires y un actor interviniente en el proyecto Nosotras Conectadas.","3 personas ",{"v":150,"d":"150.0"},{"$f":"+C6*3","v":{"v":450,"d":"450.0"}},null,null,{"$f":"+D6","v":{"v":450,"d":"450.0"}}]
["Manutención para un actor interviniente en el proyecto Nosotras Conectadas.","1 persona",{"v":150,"d":"150.0"},{"$f":"+C7","v":{"v":150,"d":"150.0"}},{"$f":"+D7","v":{"v":150,"d":"150.0"}}]
["Sala. Espacio físico por día para la realización de los talleres.","3 días","  270 ",{"$f":"270*3","v":{"v":810,"d":"810.0"}},null,{"$f":"+D8","v":{"v":810,"d":"810.0"}}]
["Ejecución logística. Recursos humanos para la implementación administrativa y logística del taller, trato con proveedores.2 personas con dedicación de 10 horas semanales por tres meses","2 personas ",{"v":1200,"d":"1,200.0"},{"$f":"+C9*2","v":{"v":2400,"d":"2,400.0"}},null,{"$f":"+D9","v":{"v":2400,"d":"2,400.0"}}]
["Diseño del taller. Recurso Humano para la realización del diseño del taller en términos de contenido y metodología (Cada RRHH con dedicación de 10hs semanales por 3 meses aprox).","2 personas ",{"v":1200,"d":"1,200.0"},{"$f":"+C10*2","v":{"v":2400,"d":"2,400.0"}},null,null,{"$f":"+C10*2","v":{"v":2400,"d":"2,400.0"}}]
["Catering. Servicio de café, almuerzo y dos snacks. 20 personas.","3 días",{"v":1000,"d":"1,000.0"},{"$f":"1000*3","v":{"v":3000,"d":"3,000.0"}},{"$f":"+D11","v":{"v":3000,"d":"3,000.0"}}]
["Servicio de facilitación. Experto en facilitación de talleres/ eventos..","3 días",{"v":230,"d":"230.0"},{"$f":"+C12*3","v":{"v":690,"d":"690.0"}},{"$f":"+D12","v":{"v":690,"d":"690.0"}}]
["Relatoría y Sistematización. Recurso Humano destinado a la relatoría del taller, la sistematización de la información y la generación de un documento compartido. (Cada RRHH dos meses con dedicación de 10hs semanales).","2  personas",{"v":800,"d":"800.0"},{"$f":"+C13*2","v":{"v":1600,"d":"1,600.0"}},null,{"$f":"+C13","v":{"v":800,"d":"800.0"}},{"$f":"+C13","v":{"v":800,"d":"800.0"}}]
["Materiales de trabajo. ",1,{"v":200,"d":"200.0"},{"$f":"200*1","v":{"v":200,"d":"200.0"}},null,{"$f":"+D14","v":{"v":200,"d":"200.0"}}]
["TOTAL",null,null,{"$f":"SUM(D2:D14)","v":{"v":17780,"d":"17780.0"}},{"$f":"SUM(E2:E14)","v":{"v":9640,"d":"9640.0"}},{"v":4490,"d":"4490.0"},{"v":3650,"d":"3650.0"}]